bitfinex-derivatives/quotes_BTCF0:USTF0_20251009
["timestamp","ask_amount","ask_price","bid_price","bid_amount"]
[1759988328267,0.30825309,122030.0,122020.0,3.2692473]
[1759988328778,0.10272999,122030.0,122020.0,3.2692473]
[1759988328976,0.02079939,122030.0,122020.0,3.199421]
[1759988329178,0.02079939,122030.0,122020.0,3.955341]
[1759988329375,0.7641109,122050.0,122040.0,0.1163939]
[1759988329681,0.78492573,122050.0,122040.0,0.8723139]
[1759988330675,0.49747203,122050.0,122040.0,0.4038476]
[1759988330882,0.02081483,122050.0,122040.0,0.4038476]
[1759988331180,0.730168,122060.0,122050.0,0.1102272]
[1759988331368,0.48466027,122060.0,122050.0,0.8661472]
[1759988331980,0.48466027,122060.0,122050.0,0.1102272]
[1759988332182,0.48466027,122060.0,122050.0,0.8662272]
[1759988332476,0.46352027,122060.0,122050.0,0.8662272]
[1759988332682,0.0819143,122060.0,122050.0,0.3976809]
[1759988332981,0.4638459,122070.0,122060.0,0.1036005]
[1759988333177,0.46350382,122070.0,122060.0,0.8594005]
[1759988333384,0.48464382,122070.0,122060.0,0.8594005]
[1759988334076,0.12384382,122070.0,122060.0,0.8594005]
[1759988334275,0.1030459,122070.0,122060.0,0.8594005]
[1759988334883,0.7429829,122080.0,122070.0,0.1167538]
[1759988334884,0.1030397,122080.0,122070.0,0.1167538]
[1759988335084,0.12381887,122080.0,122070.0,2.1634738]
[1759988336176,0.1030397,122080.0,122070.0,2.1634738]
[1759988336378,0.0818997,122080.0,122070.0,2.4509275]
[1759988336573,0.0818997,122080.0,122070.0,3.2062475]
[1759988336774,0.1158631,122090.0,122080.0,0.1035871]
[1759988336973,0.13662811,122090.0,122080.0,0.1035871]
[1759988337179,0.49742811,122090.0,122080.0,0.1035871]
[1759988337380,0.78488181,122090.0,122080.0,2.82357]
[1759988338784,0.78488181,122090.0,122080.0,0.02169]
[1759988338983,0.78488181,122090.0,122080.0,2.82345]
[1759988340079,0.78488181,122090.0,122080.0,0.02169]
[1759988340383,0.78488181,122090.0,122080.0,2.82321]
[1759988340787,0.78488181,122090.0,122080.0,0.02169]
[1759988340982,0.78488181,122090.0,122080.0,2.82293]
[1759988341287,0.1158738,122070.0,122060.0,2.06809]
[1759988341582,0.1158738,122070.0,122060.0,2.9046805]
[1759988342475,0.4766738,122070.0,122060.0,2.9046805]
[1759988344584,0.1158738,122070.0,122060.0,2.9046805]
[1759988344985,0.0819038,122070.0,122060.0,2.9046805]
[1759988345288,0.4762532,122070.0,122060.0,2.9057205]
[1759988345488,0.4555238,122070.0,122060.0,2.9057205]
[1759988345787,0.47625406,122070.0,122060.0,2.9057205]
[1759988346187,0.4555238,122070.0,122060.0,2.9057205]
[1759988347889,0.47625315,122070.0,122060.0,2.9057205]
[1759988353295,0.49919315,122070.0,122060.0,2.9046005]
[1759988356691,0.49919315,122070.0,122060.0,2.9039605]
[1759988357997,0.71464594,122070.0,122060.0,3.11941329]
[1759988359898,0.35384594,122070.0,122060.0,3.11941329]
[1759988361199,0.0819111,122060.0,122050.0,0.1036252]
[1759988361400,0.93010603,122060.0,122050.0,2.9035072]
[1759988362996,0.93010603,122060.0,122050.0,2.1497872]
[1759988363301,0.93010603,122060.0,122050.0,2.9033472]
[1759988363796,0.93010603,122060.0,122050.0,2.9033072]
[1759988365604,0.93010603,122060.0,122050.0,2.9031072]
[1759988366306,0.49920045,122060.0,122050.0,2.9031072]
[1759988366602,0.93010603,122060.0,122050.0,2.9031072]
[1759988370006,0.93010603,122060.0,122050.0,2.82119]
[1759988371806,0.93010603,122060.0,122050.0,2.9031072]
[1759988373514,0.56930603,122060.0,122050.0,2.9031072]
[1759988374006,0.93010603,122060.0,122050.0,2.9031072]
[1759988375205,0.93010603,122060.0,122050.0,0.02171]
[1759988375411,0.1178139,122040.0,122030.0,0.1038255]
[1759988375612,0.56944883,122040.0,122030.0,2.4959855]
[1759988375908,0.93024883,122040.0,122030.0,2.0683]
[1759988376310,0.93024883,122040.0,122030.0,2.82046]
[1759988377604,0.93024883,122040.0,122030.0,2.1502306]
[1759988377803,0.71479604,122040.0,122030.0,2.9025506]
[1759988378009,0.71479604,122040.0,122030.0,2.1502306]
[1759988378206,0.71479604,122040.0,122030.0,2.9025506]
[1759988379412,0.71479604,122040.0,122030.0,2.1502306]
[1759988379613,0.71479604,122040.0,122030.0,3.11780339]
[1759988379909,0.35399604,122040.0,122030.0,3.11780339]
[1759988380108,0.71479604,122040.0,122030.0,3.11780339]
[1759988380811,0.71479604,122040.0,122030.0,2.1502306]
[1759988381012,0.71479604,122040.0,122030.0,2.9022306]
[1759988381208,0.93024883,122040.0,122030.0,2.9022306]
[1759988383010,0.71479604,122040.0,122030.0,3.11748339]
[1759988384714,0.71479604,122040.0,122030.0,3.13064339]
[1759988385617,0.49934325,122040.0,122030.0,3.13064339]
[1759988385817,0.02072935,122040.0,122030.0,3.49116339]
[1759988386018,0.71428614,122050.0,122040.0,0.1035939]
[1759988386316,0.71428614,122050.0,122040.0,0.8551139]
[1759988388017,0.71428614,122050.0,122040.0,0.02167]
[1759988388217,0.71428614,122050.0,122040.0,2.81963]
[1759988389414,0.71428614,122050.0,122040.0,2.9015539]
[1759988389716,0.35348614,122050.0,122040.0,2.1502339]
[1759988389919,0.35348614,122050.0,122040.0,3.12362669]
[1759988390107,0.31967219,122050.0,122040.0,3.12362669]
[1759988390311,0.34046813,122050.0,122040.0,3.12362669]
[1759988390516,0.34046813,122050.0,122040.0,3.12342669]
[1759988392316,0.34046813,122050.0,122040.0,2.37230669]
[1759988392617,0.34046813,122050.0,122040.0,3.12318669]
[1759988394124,0.35349813,122050.0,122040.0,3.11656669]
[1759988399023,0.02079594,122050.0,122040.0,3.56401227]
[1759988399325,0.02079594,122050.0,122040.0,4.09907948]
[1759988399826,0.3608,122060.0,122050.0,0.1035872]
[1759988400125,0.46352163,122060.0,122050.0,0.31903999]
[1759988400319,0.10272163,122060.0,122050.0,0.31903999]
[1759988402625,0.02081113,122060.0,122050.0,1.06935999]
[1759988402823,0.02081113,122060.0,122050.0,1.06927999]
[1759988403025,0.02081113,122060.0,122050.0,0.31903999]
[1759988403325,0.0819105,122060.0,122050.0,3.11575999]
[1759988404623,0.68046109,122070.0,122060.0,0.1031205]
[1759988404928,0.8012566,122070.0,122060.0,0.33135329]
[1759988405129,0.38159551,122070.0,122060.0,0.54680608]
[1759988405324,0.3608,122080.0,122070.0,0.1162738]
[1759988405627,0.46348855,122080.0,122070.0,0.33172659]
[1759988405826,0.02079145,122080.0,122070.0,0.33172659]
[1759988406028,0.02079145,122080.0,122070.0,1.08184659]
[1759988406219,0.67920769,122090.0,122080.0,0.0885171]
[1759988406427,0.75998878,122090.0,122080.0,0.32517989]
[1759988406730,0.46347599,122090.0,122080.0,1.29071268]
[1759988407421,0.38158109,122090.0,122080.0,0.54063268]
[1759988407727,0.4426904,122090.0,122080.0,1.29063268]
[1759988408528,0.3608,122090.0,122080.0,0.54063268]
[1759988408725,0.3608,122090.0,122080.0,1.29059268]
[1759988409029,0.4426904,122090.0,122080.0,1.29059268]
[1759988409327,0.0818904,122090.0,122080.0,1.29059268]
[1759988411930,0.0818904,122090.0,122080.0,1.65139268]
[1759988412526,0.0818904,122090.0,122080.0,1.29059268]
[1759988414729,0.0818904,122090.0,122080.0,0.54063268]
[1759988414925,0.0818904,122090.0,122080.0,3.33599268]
[1759988415520,0.0818904,122090.0,122080.0,0.54063268]
[1759988416032,0.0818904,122090.0,122080.0,3.33587268]
[1759988416532,0.29734319,122090.0,122080.0,3.33583268]
[1759988416724,0.29734319,122090.0,122080.0,2.37121989]
[1759988416929,0.31840319,122090.0,122080.0,3.12029989]
[1759988417332,0.92837194,122090.0,122080.0,0.02121]
[1759988417532,0.92837194,122090.0,122080.0,2.6733471]
[1759988417727,0.71291915,122090.0,122080.0,2.8983071]
[1759988417926,0.71291915,122090.0,122080.0,2.1491471]
[1759988418126,0.71291915,122090.0,122080.0,2.8983471]
[1759988419928,0.78465937,122090.0,122080.0,2.8983471]
[1759988420134,0.78465937,122090.0,122080.0,2.8983071]
[1759988420335,0.49746636,122090.0,122080.0,2.8983071]
[1759988420530,0.49746636,122090.0,122080.0,2.1491071]
[1759988420731,0.46338636,122090.0,122080.0,3.19188011]
[1759988421423,0.02069596,122090.0,122080.0,3.19192011]
[1759988421627,0.4426858,122100.0,122090.0,0.1031004]
[1759988421823,0.46339286,122100.0,122090.0,1.13933341]
[1759988422024,0.02070706,122100.0,122090.0,1.13929341]
[1759988422624,0.4426813,122110.0,122100.0,0.03399]
[1759988422830,0.46339137,122110.0,122100.0,0.40306671]
[1759988423030,0.10259137,122110.0,122100.0,0.40306671]
[1759988423235,0.10259137,122110.0,122100.0,1.15206671]
[1759988424036,0.10559137,122110.0,122100.0,0.40306671]
[1759988424232,0.10559137,122110.0,122100.0,1.15198671]
[1759988425138,0.10559137,122110.0,122100.0,0.76386671]
[1759988425338,0.10559137,122110.0,122100.0,1.51274671]
[1759988425839,0.10559137,122110.0,122100.0,0.76386671]
[1759988426039,0.10559137,122110.0,122100.0,3.55858671]
[1759988427033,0.10559137,122110.0,122100.0,3.2713937]
[1759988427238,0.10559137,122110.0,122100.0,3.55858671]
[1759988427735,0.02371007,122110.0,122100.0,2.80974671]
[1759988427938,0.02371007,122110.0,122100.0,3.55842671]
[1759988428640,0.02371007,122110.0,122100.0,2.80974671]
[1759988428836,0.10558697,122110.0,122100.0,3.55826671]
[1759988429540,0.10558697,122110.0,122100.0,3.55822671]
[1759988430441,0.10558697,122110.0,122100.0,0.76386671]
[1759988430643,0.10558697,122110.0,122100.0,3.55802671]
[1759988432240,0.11458697,122110.0,122100.0,3.55802671]
[1759988432634,0.0938769,122110.0,122100.0,3.55802671]
[1759988432839,0.11460433,122110.0,122100.0,3.55802671]
[1759988435347,0.11460433,122110.0,122100.0,3.55774671]
[1759988437838,0.11460433,122110.0,122100.0,0.76386671]
[1759988438046,0.11460433,122110.0,122100.0,3.55766671]
[1759988442047,0.79858734,122110.0,122100.0,2.06677]
[1759988442244,0.79858734,122110.0,122100.0,2.81497]
[1759988442444,0.79858734,122110.0,122100.0,2.8968537]
[1759988443243,0.51139433,122110.0,122100.0,2.8968537]
[1759988443646,0.51139433,122110.0,122100.0,2.8967737]
[1759988449046,0.15059433,122110.0,122100.0,2.8967737]
[1759988449249,0.51139433,122110.0,122100.0,2.8967737]
[1759988452757,0.51139433,122110.0,122100.0,0.02121]
[1759988452951,0.51139433,122110.0,122100.0,2.81485]
[1759988453859,0.51139433,122110.0,122100.0,2.8967337]
[1759988454755,0.79858734,122110.0,122100.0,2.8967337]
[1759988458257,0.79858734,122110.0,122100.0,2.81485]
[1759988458459,0.79858734,122110.0,122100.0,2.8967337]
[1759988458859,0.79858734,122110.0,122100.0,0.1030937]
[1759988459158,0.79858734,122110.0,122100.0,2.8966937]
[1759988459457,1.19858734,122110.0,122100.0,0.02121]
[1759988459653,1.19858734,122110.0,122100.0,0.76929]
[1759988459854,1.19858734,122110.0,122100.0,0.02121]
[1759988460053,1.19858734,122110.0,122100.0,0.76929]
[1759988463951,1.19858734,122110.0,122100.0,0.8511737]
[1759988464152,1.19858734,122110.0,122100.0,0.1030937]
[1759988464357,1.19858734,122110.0,122100.0,0.8511737]
[1759988465459,0.91139433,122110.0,122100.0,0.8511737]
[1759988465659,0.79858734,122110.0,122100.0,0.8511737]
[1759988466463,0.79858734,122110.0,122100.0,0.76929]
[1759988466665,0.51139433,122110.0,122100.0,0.76929]
[1759988466965,0.79858734,122110.0,122100.0,0.8511337]
[1759988468665,0.79858734,122110.0,122100.0,0.1030937]
[1759988468867,0.79858734,122110.0,122100.0,0.8511337]
[1759988472670,0.51139433,122110.0,122100.0,0.8511337]
[1759988472872,0.79858734,122110.0,122100.0,0.8511337]
[1759988478477,0.43778734,122110.0,122100.0,0.8511337]
[1759988478682,0.79858734,122110.0,122100.0,0.8511337]
[1759988479884,0.72671976,122110.0,122100.0,1.06645913]
[1759988480083,0.72671976,122110.0,122100.0,0.8511337]
[1759988483085,0.72671976,122110.0,122100.0,1.06645913]
[1759988483676,0.36591976,122110.0,122100.0,1.06645913]
[1759988484187,0.03272743,122110.0,122100.0,1.28166456]
[1759988484586,0.03272743,122110.0,122100.0,1.06633913]
[1759988484989,0.03272743,122110.0,122100.0,0.53374456]
[1759988485185,0.03272743,122110.0,122100.0,2.04246456]
[1759988485381,0.03272743,122110.0,122100.0,1.6118137]
[1759988485587,0.03272743,122110.0,122100.0,1.29454456]
[1759988486082,0.03272743,122110.0,122100.0,2.04246456]
[1759988486682,0.03272743,122110.0,122100.0,2.04242456]
[1759988490894,0.03272743,122110.0,122100.0,2.25774999]
[1759988491988,0.03272743,122110.0,122100.0,2.04242456]
[1759988492494,0.03272743,122110.0,122100.0,2.25774999]
[1759988492692,0.012,122110.0,122100.0,2.25774999]
[1759988492892,0.012,122110.0,122100.0,2.04242456]
[1759988493289,0.012,122110.0,122100.0,1.29454456]
[1759988493795,0.012,122110.0,122100.0,1.50986999]
[1759988493994,0.012,122110.0,122100.0,2.25762999]
[1759988494293,0.012,122110.0,122100.0,1.50986999]
[1759988494495,0.012,122110.0,122100.0,4.30310999]
[1759988495191,0.012,122110.0,122100.0,4.08778456]
[1759988495494,0.012,122110.0,122100.0,4.30310999]
[1759988496187,0.012,122110.0,122100.0,1.50986999]
[1759988496392,0.012,122110.0,122100.0,4.08770456]
[1759988496596,0.012,122110.0,122100.0,4.30302999]
[1759988497395,0.012,122110.0,122100.0,4.08770456]
[1759988497590,0.012,122110.0,122100.0,4.30302999]
[1759988497792,0.012,122110.0,122100.0,1.50986999]
[1759988498192,0.012,122110.0,122100.0,4.30302999]
[1759988498996,0.012,122110.0,122100.0,4.30298999]
[1759988499797,0.1048981,122130.0,122120.0,0.1106502]
[1759988500100,0.12563516,122130.0,122120.0,1.28898106]
[1759988500999,0.13963516,122130.0,122120.0,1.28898106]
[1759988501195,0.13963516,122130.0,122120.0,3.33438106]
[1759988501597,0.13963516,122130.0,122120.0,2.58670106]
[1759988501899,0.13963516,122130.0,122120.0,3.33434106]
[1759988502103,0.13963516,122130.0,122120.0,2.1560502]
[1759988502104,0.14363516,122130.0,122120.0,2.1560502]
[1759988502401,0.14363516,122130.0,122120.0,0.54130106]
[1759988502598,0.14363516,122130.0,122120.0,3.33434106]
[1759988505698,0.14363516,122130.0,122120.0,3.33430106]
[1759988505890,0.12060516,122130.0,122120.0,3.33430106]
[1759988506096,0.12060516,122130.0,122120.0,2.58670106]
[1759988506302,0.12060516,122130.0,122120.0,3.33426106]
[1759988506497,0.12060516,122130.0,122120.0,2.58670106]
[1759988506702,0.12060516,122130.0,122120.0,3.33426106]
[1759988509798,0.12060516,122130.0,122120.0,3.33422106]
[1759988512502,0.14288516,122130.0,122120.0,0.54130106]
[1759988512699,0.51759516,122130.0,122120.0,2.57996106]
[1759988512901,0.73292059,122130.0,122120.0,3.11211563]
[1759988514506,0.73292059,122130.0,122120.0,2.36463563]
[1759988514806,0.73292059,122130.0,122120.0,3.11211563]
[1759988515206,0.37212059,122130.0,122120.0,3.32744106]
[1759988516308,0.15679516,122130.0,122120.0,3.32744106]
[1759988518911,0.37212059,122130.0,122120.0,0.31935563]
[1759988519106,0.73292059,122130.0,122120.0,0.23748543]
[1759988519313,0.73292059,122130.0,122120.0,3.03012543]
[1759988519608,0.73292059,122130.0,122120.0,0.02216]
[1759988519821,0.73292059,122130.0,122120.0,3.03012543]
[1759988520715,0.73292059,122130.0,122120.0,3.11199563]
[1759988521110,1.13292059,122130.0,122120.0,0.02216]
[1759988521315,1.13292059,122130.0,122120.0,2.0674]
[1759988521609,1.13292059,122130.0,122120.0,3.03004543]
[1759988521804,0.91759516,122130.0,122120.0,3.03004543]
[1759988522003,1.13292059,122130.0,122120.0,3.03004543]
[1759988522714,0.91759516,122130.0,122120.0,3.03004543]
[1759988522905,1.13292059,122130.0,122120.0,3.03004543]
[1759988523813,0.91759516,122130.0,122120.0,2.49805086]
[1759988524011,1.13292059,122130.0,122120.0,3.03000543]
[1759988524717,1.13292059,122130.0,122120.0,2.28272543]
[1759988524918,1.13292059,122130.0,122120.0,3.03000543]
[1759988526410,1.13292059,122130.0,122120.0,3.03004543]
[1759988526810,1.13292059,122130.0,122120.0,3.11191563]
[1759988527809,1.13292059,122130.0,122120.0,3.03004543]
[1759988529417,1.13292059,122130.0,122120.0,0.02216]
[1759988529617,1.13292059,122130.0,122120.0,3.03000543]
[1759988530311,1.13292059,122130.0,122120.0,0.02216]
[1759988530518,1.13292059,122130.0,122120.0,2.81468]
[1759988530816,1.13292059,122130.0,122120.0,3.03000543]
[1759988531415,1.13292059,122130.0,122120.0,2.81468]
[1759988532510,0.73593059,122130.0,122120.0,3.33374106]
[1759988533312,1.11044059,122130.0,122120.0,2.8146]
[1759988533818,1.11044059,122130.0,122120.0,3.02992543]
[1759988534415,1.11039733,122130.0,122120.0,3.02992543]
[1759988535009,1.11039733,122130.0,122120.0,3.11179563]
[1759988535413,0.74959733,122130.0,122120.0,3.11179563]
[1759988535814,1.11039733,122130.0,122120.0,3.11179563]
[1759988536017,0.74959733,122130.0,122120.0,3.11179563]
[1759988536721,1.11039733,122130.0,122120.0,3.11179563]
[1759988537122,0.74959733,122130.0,122120.0,3.11179563]
[1759988537623,1.11039733,122130.0,122120.0,3.11179563]
[1759988538622,0.74959733,122130.0,122120.0,3.11179563]
[1759988539321,1.11039733,122130.0,122120.0,3.11179563]
[1759988539824,0.8950719,122130.0,122120.0,3.16480062]
[1759988543619,0.9183019,122130.0,122120.0,0.29049042]
[1759988543826,1.20527429,122130.0,122120.0,2.79575803]
[1759988544425,0.80527429,122130.0,122120.0,0.00351803]
[1759988544624,0.80527429,122130.0,122120.0,2.79575803]
[1759988545020,0.80527429,122130.0,122120.0,2.04875803]
[1759988545317,0.80527429,122130.0,122120.0,2.79575803]
[1759988545318,1.16607429,122130.0,122120.0,2.79575803]
[1759988546114,1.16607429,122130.0,122120.0,2.79571803]
[1759988547224,1.16607429,122130.0,122120.0,0.00351803]
[1759988547420,1.16607429,122130.0,122120.0,0.59223803]
[1759988550824,0.0955802,122120.0,122110.0,2.04528]
[1759988551022,0.76404639,122120.0,122110.0,2.79216]
[1759988551428,0.1188169,122110.0,122100.0,2.06754]
[1759988551728,0.78728309,122110.0,122100.0,2.81442]
[1759988553027,0.78928309,122110.0,122100.0,2.81442]
[1759988553230,0.79128309,122110.0,122100.0,2.81442]
[1759988559836,0.79128309,122110.0,122100.0,2.1494237]
[1759988560033,0.43048309,122110.0,122100.0,2.8962237]
[1759988560238,0.5043107,122110.0,122100.0,2.8962237]
[1759988561439,0.79128309,122110.0,122100.0,2.81434]
[1759988562639,0.79128309,122110.0,122100.0,0.02226]
[1759988562834,0.79128309,122110.0,122080.0,0.36742]
[1759988562835,0.0956037,122100.0,122090.0,2.04552]
[1759988563035,0.76406989,122100.0,122090.0,2.79232]
[1759988564341,0.76406989,122100.0,122090.0,2.04552]
[1759988564540,0.76406989,122100.0,122090.0,2.79228]
[1759988565042,0.76506989,122100.0,122090.0,2.79228]
[1759988569842,0.0818904,122090.0,122080.0,0.0818961]
[1759988570044,0.1171604,122090.0,122080.0,2.8742161]
[1759988570445,0.1171604,122090.0,122080.0,2.79232]
[1759988571448,0.1171604,122090.0,122080.0,2.79432]
[1759988571844,0.13778148,122090.0,122080.0,2.81546]
[1759988572042,0.13778148,122090.0,122080.0,2.8973571]
[1759988576046,0.13778148,122090.0,122080.0,3.18432949]
[1759988579246,0.13778148,122090.0,122080.0,3.54512949]
[1759988579757,0.13778148,122090.0,122080.0,3.2581571]
[1759988579946,0.78555387,122090.0,122080.0,0.02314]
[1759988580253,0.78555387,122090.0,122080.0,2.81538]
[1759988580546,0.78555387,122090.0,122080.0,0.02314]
[1759988580753,1.18555387,122090.0,122080.0,2.04768]
[1759988581052,1.18555387,122090.0,122080.0,2.77558974]
[1759988581257,0.1171805,122060.0,122050.0,0.4638552]
[1759988581448,0.1171805,122060.0,122050.0,3.2560952]
[1759988582748,0.1171805,122060.0,122050.0,3.2650952]
[1759988583052,0.1171805,122060.0,122050.0,3.2680952]
[1759988584747,0.1171805,122060.0,122050.0,2.9072952]
[1759988584952,0.1171805,122060.0,122050.0,2.1607352]
[1759988585146,0.1171805,122060.0,122050.0,2.9072952]
[1759988585851,0.1171805,122060.0,122050.0,2.1607352]
[1759988586054,0.1171805,122060.0,122050.0,2.9072952]
[1759988586246,0.1171805,122060.0,122050.0,2.9074552]
[1759988587955,0.13779319,122060.0,122050.0,2.9074552]
[1759988588161,0.1171805,122060.0,122050.0,2.9074552]
[1759988588355,0.1171805,122060.0,122050.0,3.2682552]
[1759988590161,0.1171805,122060.0,122050.0,2.9074552]
[1759988590361,0.13778778,122060.0,122050.0,3.19442759]
[1759988590857,0.13778778,122060.0,122050.0,3.19446759]
[1759988591259,0.13778778,122060.0,122050.0,3.19454759]
[1759988591760,0.13778778,122060.0,122050.0,2.9075752]
[1759988591954,0.13778778,122060.0,122050.0,0.03314]
[1759988591955,0.1171805,122060.0,122050.0,0.03314]
[1759988592161,0.4247609,122060.0,122050.0,2.9075772]
[1759988592657,0.4247609,122060.0,122050.0,0.1150572]
[1759988592863,1.1855609,122060.0,122050.0,2.82566]
[1759988593157,1.1855609,122060.0,122050.0,2.9075772]
[1759988593459,0.13778851,122060.0,122050.0,2.1610972]
[1759988593659,0.13778851,122060.0,122050.0,2.9075772]
[1759988597072,0.13778851,122060.0,122050.0,2.82566]
[1759988599972,0.35326633,122060.0,122050.0,3.12305502]
[1759988603264,0.35326633,122060.0,122050.0,2.37657502]
[1759988603470,0.31799633,122060.0,122050.0,3.12297502]
[1759988604171,0.02060801,122060.0,122050.0,2.95285284]
[1759988604377,0.0819076,122070.0,122060.0,0.1101905]
[1759988604578,0.0819076,122070.0,122060.0,0.90194614]
[1759988604579,0.02063883,122070.0,122060.0,0.90194614]
[1759988604771,0.0819026,122080.0,122070.0,0.1035638]
[1759988605075,0.10254419,122080.0,122070.0,1.06544162]
[1759988605377,0.0819026,122080.0,122070.0,1.06544162]
[1759988605579,0.10254718,122080.0,122070.0,0.67984162]
[1759988605770,0.0819026,122080.0,122070.0,1.42624162]
[1759988605971,0.0819026,122080.0,122070.0,1.42924162]
[1759988606170,0.0819026,122080.0,122070.0,0.8539638]
[1759988606371,0.10255069,122080.0,122070.0,1.06944162]
[1759988606869,0.31802851,122080.0,122070.0,1.06944162]
[1759988607067,0.29738042,122080.0,122070.0,1.06944162]
[1759988607270,0.31803283,122080.0,122070.0,1.06944162]
[1759988608175,0.29738042,122080.0,122070.0,1.06944162]
[1759988608477,0.33179756,122080.0,122070.0,1.06944162]
[1759988609280,0.33180325,122080.0,122070.0,1.06944162]
[1759988610382,0.31114042,122080.0,122070.0,1.06944162]
[1759988610971,0.33180136,122080.0,122070.0,1.06944162]
[1759988611180,0.31114042,122080.0,122070.0,1.06944162]
[1759988611778,0.33428042,122080.0,122070.0,0.32304162]
[1759988612082,0.35493895,122080.0,122070.0,3.11544162]
[1759988615587,0.35493895,122080.0,122070.0,2.8999638]
[1759988615885,0.35493895,122080.0,122070.0,3.11544162]
[1759988617284,0.33428042,122080.0,122070.0,3.11544162]
[1759988618787,0.29738042,122080.0,122070.0,2.36916162]
[1759988618989,0.29738042,122080.0,122070.0,3.11532162]
[1759988620781,0.31942042,122080.0,122070.0,0.32304162]
[1759988620990,0.34007013,122080.0,122070.0,3.11528162]
[1759988622891,0.31803013,122080.0,122070.0,3.11528162]
[1759988623197,0.10255231,122080.0,122070.0,3.11528162]
[1759988623388,0.31803013,122080.0,122070.0,3.11528162]
[1759988623688,0.31803013,122080.0,122070.0,0.32304162]
[1759988623886,0.34007013,122080.0,122070.0,3.11520162]
[1759988626393,0.31803013,122080.0,122070.0,3.11520162]
[1759988629589,0.33107013,122080.0,122070.0,3.11520162]
[1759988630991,0.33107013,122080.0,122070.0,0.32304162]
[1759988631295,0.35369013,122080.0,122070.0,3.11508162]
[1759988631491,0.35369013,122080.0,122070.0,3.11504162]
[1759988631795,0.35369013,122080.0,122070.0,3.11324162]
[1759988634199,0.35369013,122080.0,122070.0,3.11320162]
[1759988641102,0.35369013,122080.0,122070.0,0.32124162]
[1759988641293,0.35369013,122080.0,122070.0,2.8976438]
[1759988641491,0.92996795,122080.0,122070.0,2.8157]
[1759988641891,0.35369013,122080.0,122070.0,3.11308162]
[1759988642496,0.10255231,122080.0,122070.0,3.11308162]
[1759988643204,0.33066013,122080.0,122070.0,3.11308162]
[1759988644603,0.33066013,122080.0,122070.0,2.36728162]
[1759988644808,0.33066013,122080.0,122070.0,3.11304162]
[1759988650805,0.33066013,122080.0,122070.0,2.36728162]
[1759988651006,0.33066013,122080.0,122070.0,3.11292162]
[1759988653209,0.33066013,122080.0,122070.0,2.36728162]
[1759988653404,0.33066013,122080.0,122070.0,3.11288162]
[1759988654709,0.33066013,122080.0,122070.0,2.36728162]
[1759988654909,0.56836795,122080.0,122070.0,2.8973638]
[1759988655308,1.32916795,122080.0,122070.0,2.06986]
[1759988655508,1.32916795,122080.0,122070.0,2.81542]
[1759988656506,1.32916795,122080.0,122070.0,0.74956]
[1759988656706,1.32916795,122080.0,122070.0,0.76894]
[1759988659914,1.32916795,122080.0,122070.0,0.02338]
[1759988660114,1.32916795,122080.0,122070.0,0.7689]
[1759988662014,1.18544948,122080.0,122070.0,0.7689]
[1759988662913,1.18544948,122080.0,122070.0,0.02338]
[1759988663215,1.18544948,122080.0,122070.0,0.7689]
[1759988664217,1.16479977,122080.0,122070.0,0.7689]
[1759988664418,1.18543322,122080.0,122070.0,0.7689]
[1759988665210,1.18543322,122080.0,122070.0,0.1052838]
[1759988665211,0.78543322,122080.0,122070.0,0.1052838]
[1759988665417,0.49819605,122080.0,122070.0,0.8507638]
[1759988665612,0.78543322,122080.0,122070.0,0.8507638]
[1759988668417,0.78543322,122080.0,122070.0,0.76882]
[1759988669323,0.78543322,122080.0,122070.0,0.02338]
[1759988669523,0.78543322,122080.0,122070.0,0.76882]
[1759988673025,0.42463322,122080.0,122070.0,0.76882]
[1759988673326,0.78543322,122080.0,122070.0,0.76882]
[1759988673521,0.78543322,122080.0,122070.0,0.02338]
[1759988673729,0.78543322,122080.0,122070.0,0.74936]
[1759988674428,0.78543322,122080.0,122070.0,0.004]
[1759988674727,0.78543322,122080.0,122070.0,0.74936]
[1759988675222,1.07267039,122080.0,122070.0,0.74936]
[1759988675426,0.78543322,122080.0,122070.0,0.004]
[1759988676026,0.78543322,122080.0,122070.0,0.74936]
[1759988676827,0.78543322,122080.0,122070.0,0.004]
[1759988677029,0.78543322,122080.0,122070.0,0.24848]
[1759988678431,0.78543322,122080.0,122070.0,0.004]
[1759988678629,0.78543322,122080.0,122070.0,0.74932]
[1759988679030,0.49819605,122080.0,122070.0,0.74932]
[1759988679230,0.78543322,122080.0,122070.0,0.004]
[1759988679425,0.78543322,122080.0,122070.0,0.74928]
[1759988679634,0.78543322,122080.0,122070.0,0.76866]
[1759988681032,0.78543322,122080.0,122070.0,0.02338]
[1759988681233,0.78543322,122080.0,122070.0,0.76866]
[1759988681532,0.78543322,122080.0,122070.0,0.02338]
[1759988681734,0.78543322,122080.0,122070.0,0.76866]
[1759988690337,0.78543322,122080.0,122070.0,0.76854]
[1759988691141,0.78543322,122080.0,122070.0,0.02338]
[1759988691342,0.78543322,122080.0,122070.0,0.7685]
[1759988692943,0.78543322,122080.0,122070.0,0.02338]
[1759988693240,0.78543322,122080.0,122070.0,0.7685]
[1759988694142,0.78543322,122080.0,122070.0,0.76846]
[1759988694342,0.78543322,122080.0,122070.0,0.02338]
[1759988694541,0.78543322,122080.0,122070.0,0.74908]
[1759988695039,0.78543322,122080.0,122070.0,0.76846]
[1759988696643,0.78543322,122080.0,122070.0,0.02338]
[1759988696831,0.78543322,122080.0,122070.0,0.76842]
[1759988699542,0.78543322,122080.0,122070.0,0.74904]
[1759988701039,0.78543322,122080.0,122070.0,0.76842]
[1759988704646,0.42463322,122080.0,122070.0,0.76842]
[1759988704847,0.78543322,122080.0,122070.0,0.02338]
[1759988705047,0.78543322,122080.0,122070.0,0.7683]
[1759988705647,0.49819605,122080.0,122070.0,0.7683]
[1759988705848,0.78543322,122080.0,122070.0,0.02338]
[1759988706048,0.78543322,122080.0,122070.0,0.7683]
[1759988706843,0.78543322,122080.0,122070.0,0.02338]
[1759988707149,0.78543322,122080.0,122070.0,0.7683]
[1759988707349,0.78543322,122080.0,122070.0,0.02338]
[1759988707550,0.78543322,122080.0,122070.0,0.76826]
[1759988709945,0.78543322,122080.0,122070.0,0.02338]
[1759988710152,0.78543322,122080.0,122070.0,0.76822]
[1759988711041,0.78543322,122080.0,122070.0,0.02338]
[1759988711446,0.78543322,122080.0,122070.0,0.76822]
[1759988714852,0.78565084,122080.0,122070.0,0.76822]
[1759988715748,0.78565084,122080.0,122070.0,0.02338]
[1759988716048,0.78565084,122080.0,122070.0,0.76814]
[1759988719655,0.78565084,122080.0,122070.0,0.02338]
[1759988719855,0.78565084,122080.0,122070.0,0.7681]
[1759988724056,0.92931063,122080.0,122070.0,0.7681]
[1759988730656,0.92931063,122080.0,122070.0,0.7679]
[1759988732757,0.92931063,122080.0,122070.0,0.02338]
[1759988732959,1.54475911,122080.0,122070.0,0.004]
[1759988733161,1.54475911,122080.0,122070.0,0.74848]
[1759988733656,1.54475911,122080.0,122070.0,0.72982814]